[Event "GER-ch Blitz 2019"]
[Site "Magdeburg"]
[Date "2019.05.25"]
[Round "8.8"]
[White "Feuerstack, Aljoscha"]
[Black "Schmaltz, Roland"]
[Result "0-1"]
[ECO "B00"]
[WhiteElo "2441"]
[BlackElo "2461"]
[Annotator "ChessBase"]
[PlyCount "65"]
[EventDate "2019.05.25"]
[EventType "tourn"]
[EventCountry "GER"]
[Tiebreak "Number of wins+Number of black wins"]
[SourceTitle "playchess.com"]
[Source "ChessBase"]
[SourceQuality "1"]
[TimeControl "180+2"]

1. e4 {[%emt 0:00:00]} d6 {[%emt 0:00:00]} 2. d4 {[%emt 0:00:02]} Nf6 {[%emt 0:
00:02]} 3. Bd3 {[%emt 0:00:02]} g6 {[%emt 0:00:02]} 4. Nf3 {[%emt 0:00:02]} Bg7
{[%emt 0:00:02]} 5. h3 {[%emt 0:00:02]} O-O {[%emt 0:00:02]} 6. O-O {[%emt 0:
00:04]} Nc6 {[%emt 0:00:01]} 7. c3 {[%emt 0:00:03]} e5 {[%emt 0:00:01]} 8. Re1
{[%emt 0:00:05]} h6 {[%emt 0:00:03]} 9. Na3 {[%emt 0:00:04]} Nh5 {[%emt 0:00:
04]} 10. Nc2 {[%emt 0:00:02]} Qf6 {[%emt 0:00:05]} 11. b4 {[%emt 0:00:08]} a6 {
[%emt 0:00:01]} 12. a4 {[%emt 0:00:03]} Nf4 {[%emt 0:00:05]} 13. Bxf4 {[%emt 0:
00:07]} Qxf4 {[%emt 0:00:01]} 14. Ne3 {[%emt 0:00:02]} Qf6 {[%emt 0:00:14]} 15.
b5 {[%emt 0:00:15]} Nb8 {[%emt 0:00:17]} 16. dxe5 {[%emt 0:00:37]} dxe5 {
[%emt 0:00:02]} 17. Bc4 {[%emt 0:00:01]} c6 {[%emt 0:00:13]} 18. Ng4 {[%emt 0:
00:13]} Qe7 {[%emt 0:00:04]} 19. Qd2 {[%emt 0:00:30]} Bxg4 {[%emt 0:00:07]} 20.
hxg4 {[%emt 0:00:01]} axb5 {[%emt 0:00:03]} 21. axb5 {[%emt 0:00:01]} Nd7 {
[%emt 0:00:02]} 22. bxc6 {[%emt 0:00:09]} bxc6 {[%emt 0:00:00]} 23. Red1 {
[%emt 0:00:11]} Rxa1 {[%emt 0:00:08]} 24. Rxa1 {[%emt 0:00:01]} Nf6 {[%emt 0:
00:02]} 25. Ra6 {[%emt 0:00:27]} Qc5 {[%emt 0:00:12]} 26. Qe2 {[%emt 0:00:07]}
Nxg4 {[%emt 0:00:04]} 27. Nd2 {[%emt 0:00:23]} h5 {[%emt 0:00:10]} 28. Kf1 {
[%emt 0:00:02]} Rd8 {[%emt 0:00:09]} 29. Ra2 {[%emt 0:00:05]} Bh6 {[%emt 0:00:
18]} 30. Nb3 {[%emt 0:00:02]} Qe7 {[%emt 0:00:06]} 31. Ra1 {[%emt 0:00:01]} Qh4
{[%emt 0:00:02]} 32. Ke1 {[%emt 0:00:03]} Be3 {[%emt 0:00:07]} 33. g3 0-1

[Event "GER-ch Blitz 2019"]
[Site "Magdeburg"]
[Date "2019.05.25"]
[Round "8.9"]
[White "Stein, Robert"]
[Black "Voege, Tobias"]
[Result "1-0"]
[ECO "D07"]
[WhiteElo "2318"]
[BlackElo "2294"]
[Annotator "NA"]
[PlyCount "137"]
[EventDate "2019.05.25"]
[EventType "tourn"]
[EventCountry "GER"]
[Tiebreak "Number of wins+Number of black wins"]
[SourceTitle "playchess.com"]
[Source "ChessBase"]
[SourceQuality "1"]
[TimeControl "180+2"]

1. d4 {[%emt 0:00:00]} d5 {[%emt 0:00:00]} 2. c4 {[%emt 0:00:01]} Nc6 {[%emt 0:
00:00]} 3. cxd5 {[%emt 0:00:01]} Qxd5 {[%emt 0:00:01]} 4. e3 {[%emt 0:00:00]}
e5 {[%emt 0:00:01]} 5. Nc3 {[%emt 0:00:01]} Bb4 {[%emt 0:00:01]} 6. a3 {
[%emt 0:00:00]} Bxc3+ {[%emt 0:00:02]} 7. bxc3 {[%emt 0:00:01]} Nf6 8. c4 Qd6 {
[%emt 0:00:08]} 9. d5 {[%emt 0:00:01]} Nb8 {[%emt 0:00:00]} 10. a4 {[%emt 0:00:
00]} Nbd7 {[%emt 0:00:09]} 11. Ba3 {[%emt 0:00:01]} Nc5 {[%emt 0:00:02]} 12.
Nf3 {[%emt 0:00:05]} Bg4 {[%emt 0:00:12]} 13. Be2 {[%emt 0:00:01]} b6 {[%emt 0:
00:04]} 14. O-O {[%emt 0:00:09]} O-O {[%emt 0:00:04]} 15. Nd2 {[%emt 0:00:03]}
Bxe2 {[%emt 0:00:08]} 16. Qxe2 {[%emt 0:00:01]} Nfd7 {[%emt 0:00:09]} 17. Ne4 {
[%emt 0:00:02]} Qe7 {[%emt 0:00:08]} 18. Nxc5 {[%emt 0:00:03]} Nxc5 {[%emt 0:
00:04]} 19. Rab1 {[%emt 0:00:16]} c6 {[%emt 0:00:10]} 20. Rfd1 {[%emt 0:00:19]}
e4 {[%emt 0:00:24]} 21. a5 {[%emt 0:00:14]} Rfc8 {[%emt 0:00:10]} 22. Qh5 {
[%emt 0:00:27]} g6 {[%emt 0:00:08]} 23. Qh6 {[%emt 0:00:03]} cxd5 {[%emt 0:00:
08]} 24. Rxd5 {[%emt 0:00:05]} Qc7 {[%emt 0:00:24]} 25. axb6 {[%emt 0:00:17]}
axb6 {[%emt 0:00:01]} 26. Bxc5 {[%emt 0:00:09]} bxc5 {[%emt 0:00:01]} 27. Qg5 {
[%emt 0:00:15]} Ra4 {[%emt 0:00:10]} 28. h4 {[%emt 0:00:29]} Kg7 {[%emt 0:00:
18]} 29. h5 {[%emt 0:00:12]} h6 {[%emt 0:00:01]} 30. Qg4 {[%emt 0:00:01]} Rd8 {
[%emt 0:00:14]} 31. hxg6 {[%emt 0:00:04]} Rxd5 {[%emt 0:00:10]} 32. cxd5 {
[%emt 0:00:03]} fxg6 {[%emt 0:00:00]} 33. Qe6 {[%emt 0:00:02]} Qf7 {[%emt 0:00:
13]} 34. Qe5+ {[%emt 0:00:01]} Kh7 {[%emt 0:00:03]} 35. d6 {[%emt 0:00:15]} Ra7
{[%emt 0:00:05]} 36. Qxc5 {[%emt 0:00:10]} Rd7 {[%emt 0:00:02]} 37. Qe5 {
[%emt 0:00:01]} Qf5 {[%emt 0:00:03]} 38. Qd4 {[%emt 0:00:08]} Qe6 {[%emt 0:00:
03]} 39. Rb8 {[%emt 0:00:02]} Rg7 {[%emt 0:00:03]} 40. Rb5 {[%emt 0:00:02]} Rd7
{[%emt 0:00:04]} 41. Rd5 {[%emt 0:00:01]} h5 {[%emt 0:00:02]} 42. Qc5 {[%emt 0:
00:05]} Qf6 {[%emt 0:00:05]} 43. Rd4 {[%emt 0:00:01]} Qe6 {[%emt 0:00:02]} 44.
Qc6 {[%emt 0:00:04]} Qf5 {[%emt 0:00:03]} 45. Rxe4 {[%emt 0:00:03]} Kh6 {
[%emt 0:00:04]} 46. Re7 {[%emt 0:00:02]} Rd8 {[%emt 0:00:02]} 47. Qc7 {[%emt 0:
00:02]} Qf6 {[%emt 0:00:03]} 48. Rh7+ {[%emt 0:00:05]} Kg5 {[%emt 0:00:01]} 49.
Qc5+ {[%emt 0:00:00]} Qf5 {[%emt 0:00:01]} 50. Qxf5+ {[%emt 0:00:02]} Kxf5 {
[%emt 0:00:00]} 51. d7 {[%emt 0:00:02]} Ke6 {[%emt 0:00:00]} 52. Kh2 {[%emt 0:
00:01]} Kd6 {[%emt 0:00:04]} 53. Kg3 {[%emt 0:00:01]} Kc7 {[%emt 0:00:01]} 54.
f4 {[%emt 0:00:01]} Rg8 {[%emt 0:00:03]} 55. Kh4 {[%emt 0:00:01]} Rf8 {[%emt 0:
00:02]} 56. Kg5 {[%emt 0:00:02]} Rg8 {[%emt 0:00:02]} 57. e4 {[%emt 0:00:01]}
Kd8 {[%emt 0:00:01]} 58. e5 {[%emt 0:00:01]} h4 {[%emt 0:00:02]} 59. e6 {
[%emt 0:00:01]} h3 {[%emt 0:00:03]} 60. Rxh3 {[%emt 0:00:01]} Ke7 {[%emt 0:00:
00]} 61. Rd3 {[%emt 0:00:02]} Rd8 {[%emt 0:00:01]} 62. Re3 {[%emt 0:00:04]} Rf8
{[%emt 0:00:02]} 63. g4 {[%emt 0:00:01]} Ra8 {[%emt 0:00:01]} 64. Kxg6 {
[%emt 0:00:01]} Rg8+ {[%emt 0:00:01]} 65. Kf5 {[%emt 0:00:01]} Rf8+ {[%emt 0:
00:00]} 66. Ke5 {[%emt 0:00:01]} Ra8 {[%emt 0:00:01]} 67. Rd3 {[%emt 0:00:00]}
Ra5+ {[%emt 0:00:01]} 68. Rd5 {[%emt 0:00:01]} Ra8 {[%emt 0:00:00]} 69. d8=Q+ {
[%emt 0:00:02]} 1-0

[Event "GER-ch Blitz 2019"]
[Site "Magdeburg"]
[Date "2019.05.25"]
[Round "8.10"]
[White "Braeuning, Rudolf Wilhelm"]
[Black "Zuyev, Igor"]
[Result "1-0"]
[ECO "B22"]
[WhiteElo "2285"]
[BlackElo "2447"]
[Annotator "NA"]
[PlyCount "79"]
[EventDate "2019.05.25"]
[EventType "tourn"]
[EventCountry "GER"]
[Tiebreak "Number of wins+Number of black wins"]
[SourceTitle "playchess.com"]
[Source "ChessBase"]
[SourceQuality "1"]
[TimeControl "180+2"]

1. e4 {[%emt 0:00:00]} c5 {[%emt 0:00:00]} 2. c3 {[%emt 0:00:00]} g6 {[%emt 0:
00:00]} 3. d4 {[%emt 0:00:00]} cxd4 {[%emt 0:00:02]} 4. cxd4 {[%emt 0:00:01]}
d5 {[%emt 0:00:14]} 5. exd5 {[%emt 0:00:01]} Nf6 {[%emt 0:00:01]} 6. Nc3 {
[%emt 0:00:00]} Nxd5 {[%emt 0:00:03]} 7. Qb3 {[%emt 0:00:02]} Nb6 {[%emt 0:00:
09]} 8. Bb5+ {[%emt 0:00:04]} Bd7 {[%emt 0:00:04]} 9. a4 {[%emt 0:00:03]} Nc6 {
[%emt 0:00:05]} 10. Nf3 {[%emt 0:00:05]} a6 {[%emt 0:00:04]} 11. Bxc6 {[%emt 0:
00:12]} Bxc6 {[%emt 0:00:04]} 12. Ne5 {[%emt 0:00:03]} Nd5 {[%emt 0:00:07]} 13.
Nxc6 {[%emt 0:00:24]} bxc6 {[%emt 0:00:03]} 14. Nxd5 {[%emt 0:00:09]} Qxd5 {
[%emt 0:00:05]} 15. Qxd5 {[%emt 0:00:01]} cxd5 {[%emt 0:00:01]} 16. Bf4 {
[%emt 0:00:56]} Bg7 {[%emt 0:00:05]} 17. O-O-O {[%emt 0:00:12]} Rc8+ {[%emt 0:
00:05]} 18. Kb1 {[%emt 0:00:02]} Rc4 {[%emt 0:00:03]} 19. b3 {[%emt 0:00:14]}
Rxd4 {[%emt 0:00:05]} 20. Rxd4 {[%emt 0:00:08]} Bxd4 {[%emt 0:00:02]} 21. Rd1 {
[%emt 0:00:01]} Bxf2 {[%emt 0:00:06]} 22. Rxd5 {[%emt 0:00:04]} f6 {[%emt 0:00:
04]} 23. Ra5 {[%emt 0:00:08]} Kf7 {[%emt 0:00:05]} 24. Rxa6 {[%emt 0:00:02]} e5
{[%emt 0:00:03]} 25. Bg3 {[%emt 0:00:14]} Bxg3 {[%emt 0:00:07]} 26. hxg3 {
[%emt 0:00:01]} Rc8 {[%emt 0:00:03]} 27. Ra7+ {[%emt 0:00:04]} Ke6 {[%emt 0:00:
04]} 28. Rxh7 {[%emt 0:00:08]} Rc3 {[%emt 0:00:03]} 29. Kb2 {[%emt 0:00:05]}
Rxg3 {[%emt 0:00:07]} 30. a5 Rxg2+ 31. Ka3 {[%emt 0:00:18]} Rc2 {[%emt 0:00:06]
} 32. b4 {[%emt 0:00:07]} f5 {[%emt 0:00:05]} 33. a6 {[%emt 0:00:07]} Rc1 {
[%emt 0:00:05]} 34. a7 {[%emt 0:00:07]} Rc8 {[%emt 0:00:06]} 35. b5 {[%emt 0:
00:01]} Ra8 {[%emt 0:00:06]} 36. b6 {[%emt 0:00:02]} Kd6 {[%emt 0:00:04]} 37.
Kb4 {[%emt 0:00:02]} Kc6 {[%emt 0:00:05]} 38. Ka5 {[%emt 0:00:02]} g5 {[%emt 0:
00:05]} 39. Ka6 {[%emt 0:00:03]} f4 {[%emt 0:00:04]} 40. b7 {[%emt 0:00:02]}
1-0

[Event "GER-ch Blitz 2019"]
[Site "Magdeburg"]
[Date "2019.05.25"]
[Round "8.11"]
[White "Frischmann, Rick"]
[Black "Heistermann, Till"]
[Result "1-0"]
[ECO "C41"]
[WhiteElo "2320"]
[BlackElo "2181"]
[Annotator "NA"]
[PlyCount "83"]
[EventDate "2019.05.25"]
[EventType "tourn"]
[EventCountry "GER"]
[Tiebreak "Number of wins+Number of black wins"]
[SourceTitle "playchess.com"]
[Source "ChessBase"]
[SourceQuality "1"]
[TimeControl "180+2"]

1. e4 {[%emt 0:00:00]} d6 {[%emt 0:00:00]} 2. d4 {[%emt 0:00:01]} e5 {[%emt 0:
00:00]} 3. Nf3 {[%emt 0:00:02]} exd4 {[%emt 0:00:00]} 4. Nxd4 {[%emt 0:00:01]}
Nf6 {[%emt 0:00:01]} 5. Nc3 {[%emt 0:00:01]} Be7 {[%emt 0:00:01]} 6. Be2 {
[%emt 0:00:01]} O-O {[%emt 0:00:02]} 7. Bf4 {[%emt 0:00:01]} Nc6 {[%emt 0:00:
04]} 8. Qd2 Nxd4 {[%emt 0:00:01]} 9. Qxd4 {[%emt 0:00:02]} Be6 {[%emt 0:00:01]}
10. O-O-O a6 11. Qe3 {[%emt 0:00:37]} b5 {[%emt 0:00:12]} 12. e5 {[%emt 0:00:
21]} Ne8 {[%emt 0:00:01]} 13. Ne4 {[%emt 0:00:08]} Qb8 {[%emt 0:00:08]} 14.
exd6 {[%emt 0:00:10]} Nxd6 {[%emt 0:00:03]} 15. Nxd6 {[%emt 0:00:01]} Bxd6 {
[%emt 0:00:05]} 16. Bxd6 {[%emt 0:00:01]} cxd6 {[%emt 0:00:01]} 17. Kb1 {
[%emt 0:00:01]} Qc7 {[%emt 0:00:05]} 18. Rd2 {[%emt 0:00:08]} Rfd8 {[%emt 0:00:
01]} 19. Rhd1 {[%emt 0:00:01]} Rd7 {[%emt 0:00:06]} 20. f4 {[%emt 0:00:05]}
Rad8 {[%emt 0:00:15]} 21. g4 {[%emt 0:00:02]} Bc4 {[%emt 0:00:11]} 22. Bf3 {
[%emt 0:00:03]} b4 {[%emt 0:00:02]} 23. f5 {[%emt 0:00:08]} Re7 {[%emt 0:00:36]
} 24. Qd4 {[%emt 0:00:01]} a5 {[%emt 0:00:32]} 25. g5 {[%emt 0:00:14]} Rde8 {
[%emt 0:00:07]} 26. f6 {[%emt 0:00:09]} Re5 {[%emt 0:00:04]} 27. h4 {[%emt 0:
00:28]} Re3 {[%emt 0:00:16]} 28. Bg2 {[%emt 0:00:20]} a4 {[%emt 0:00:17]} 29.
b3 {[%emt 0:00:39]} axb3 {[%emt 0:00:27]} 30. axb3 {[%emt 0:00:01]} Ba6 {
[%emt 0:00:06]} 31. Bd5 {[%emt 0:00:02]} Bb7 {[%emt 0:00:04]} 32. Qxb4 {
[%emt 0:00:04]} Bxd5 {[%emt 0:00:02]} 33. Rxd5 {[%emt 0:00:01]} Re2 {[%emt 0:
00:04]} 34. R5d2 {[%emt 0:00:01]} R2e4 {[%emt 0:00:02]} 35. Qxd6 Qc3 {[%emt 0:
00:05]} 36. Qd3 {[%emt 0:00:08]} Qe5 {[%emt 0:00:02]} 37. fxg7 Ra8 {[%emt 0:00:
03]} 38. c3 {[%emt 0:00:06]} Re3 {[%emt 0:00:02]} 39. Qd4 {[%emt 0:00:01]} Qf5+
{[%emt 0:00:02]} 40. Kb2 {[%emt 0:00:02]} Re7 41. Qf6 Rea7 42. Rd8+ 1-0

[Event "GER-ch Blitz 2019"]
[Site "Magdeburg"]
[Date "2019.05.25"]
[Round "8.12"]
[White "Barzen, Pascal"]
[Black "Hirneise, Jens"]
[Result "1/2-1/2"]
[ECO "B25"]
[WhiteElo "2292"]
[BlackElo "2375"]
[Annotator "NA"]
[PlyCount "114"]
[EventDate "2019.05.25"]
[EventType "tourn"]
[EventCountry "GER"]
[Tiebreak "Number of wins+Number of black wins"]
[SourceTitle "playchess.com"]
[Source "ChessBase"]
[SourceQuality "1"]
[TimeControl "180+2"]

1. e4 {[%emt 0:00:00]} c5 {[%emt 0:00:00]} 2. Nc3 {[%emt 0:00:00]} Nc6 3. g3 g6
{[%emt 0:00:01]} 4. Bg2 {[%emt 0:00:01]} Bg7 5. d3 d6 {[%emt 0:00:01]} 6. f4 {
[%emt 0:00:02]} e6 {[%emt 0:00:03]} 7. Nf3 {[%emt 0:00:00]} Nge7 {[%emt 0:00:
00]} 8. O-O {[%emt 0:00:01]} Qd7 {[%emt 0:00:04]} 9. Be3 {[%emt 0:00:03]} Nd4 {
[%emt 0:00:04]} 10. e5 {[%emt 0:00:06]} O-O {[%emt 0:00:41]} 11. Nxd4 {[%emt 0:
00:05]} cxd4 {[%emt 0:00:01]} 12. Bxd4 {[%emt 0:00:05]} dxe5 {[%emt 0:00:02]}
13. Bc5 {[%emt 0:00:19]} exf4 {[%emt 0:00:07]} 14. Rxf4 {[%emt 0:00:05]} Qc7 {
[%emt 0:00:30]} 15. d4 {[%emt 0:00:06]} Rd8 {[%emt 0:00:35]} 16. Nb5 {[%emt 0:
00:12]} Qd7 {[%emt 0:00:04]} 17. Nd6 {[%emt 0:00:08]} Nf5 {[%emt 0:00:13]} 18.
Nxf5 {[%emt 0:00:02]} exf5 {[%emt 0:00:24]} 19. c3 {[%emt 0:00:00]} Qc7 {
[%emt 0:00:08]} 20. Qd2 {[%emt 0:00:36]} Be6 {[%emt 0:00:14]} 21. Rff1 {
[%emt 0:00:08]} Qxc5 {[%emt 0:00:02]} 22. Qe3 {[%emt 0:00:06]} Qb6 {[%emt 0:00:
14]} 23. Qe2 {[%emt 0:00:05]} Bd5 {[%emt 0:00:04]} 24. Rfe1 {[%emt 0:00:03]}
Bxg2 {[%emt 0:00:03]} 25. Qxg2 {[%emt 0:00:01]} Re8 {[%emt 0:00:03]} 26. Re2 {
[%emt 0:00:04]} Rxe2 {[%emt 0:00:04]} 27. Qxe2 {[%emt 0:00:01]} Bf6 {[%emt 0:
00:01]} 28. Re1 {[%emt 0:00:02]} Kg7 {[%emt 0:00:01]} 29. a3 {[%emt 0:00:01]}
a5 {[%emt 0:00:03]} 30. Qd2 {[%emt 0:00:07]} h5 {[%emt 0:00:02]} 31. Re2 {
[%emt 0:00:01]} h4 {[%emt 0:00:02]} 32. Qe3 {[%emt 0:00:06]} hxg3 {[%emt 0:00:
02]} 33. hxg3 {[%emt 0:00:02]} Rh8 34. Qf3 Rd8 {[%emt 0:00:09]} 35. Rf2 {
[%emt 0:00:01]} Qd6 {[%emt 0:00:04]} 36. Kg2 {[%emt 0:00:12]} Rd7 {[%emt 0:00:
01]} 37. Re2 {[%emt 0:00:01]} b5 {[%emt 0:00:01]} 38. Re1 {[%emt 0:00:10]} b4 {
[%emt 0:00:01]} 39. axb4 {[%emt 0:00:01]} axb4 {[%emt 0:00:01]} 40. Re2 {
[%emt 0:00:03]} bxc3 {[%emt 0:00:01]} 41. bxc3 {[%emt 0:00:00]} Rc7 {[%emt 0:
00:01]} 42. Re3 {[%emt 0:00:02]} Rd7 {[%emt 0:00:06]} 43. Re2 {[%emt 0:00:05]}
Rc7 {[%emt 0:00:02]} 44. Re3 {[%emt 0:00:01]} Bg5 {[%emt 0:00:01]} 45. Rd3 {
[%emt 0:00:04]} Bf6 {[%emt 0:00:03]} 46. Rd2 {[%emt 0:00:01]} Qa3 {[%emt 0:00:
02]} 47. Rd3 {[%emt 0:00:18]} Re7 {[%emt 0:00:02]} 48. Rd2 {[%emt 0:00:07]} Qc1
{[%emt 0:00:02]} 49. Qf2 {[%emt 0:00:03]} Rc7 {[%emt 0:00:04]} 50. d5 {[%emt 0:
00:02]} Qxc3 {[%emt 0:00:01]} 51. d6 {[%emt 0:00:01]} Qc6+ {[%emt 0:00:01]} 52.
Kf1 {[%emt 0:00:03]} Rd7 {[%emt 0:00:01]} 53. Qf4 {[%emt 0:00:02]} Qb5+ {
[%emt 0:00:01]} 54. Kg1 {[%emt 0:00:02]} Qc5+ {[%emt 0:00:01]} 55. Kf1 {
[%emt 0:00:01]} Be5 {[%emt 0:00:01]} 56. Qf3 {[%emt 0:00:12]} Rxd6 {[%emt 0:00:
02]} 57. Rxd6 {[%emt 0:00:01]} Qxd6 {[%emt 0:00:01]} 1/2-1/2

[Event "GER-ch Blitz 2019"]
[Site "Magdeburg"]
[Date "2019.05.25"]
[Round "8.13"]
[White "Stern, Rene"]
[Black "Hebbinghaus, Holger"]
[Result "1/2-1/2"]
[ECO "A06"]
[WhiteElo "2538"]
[BlackElo "2310"]
[Annotator "ChessBase"]
[PlyCount "82"]
[EventDate "2019.05.25"]
[EventType "tourn"]
[EventCountry "GER"]
[Tiebreak "Number of wins+Number of black wins"]
[SourceTitle "playchess.com"]
[Source "ChessBase"]
[SourceQuality "1"]
[TimeControl "180+2"]

1. Nf3 {[%emt 0:00:00]} d5 {[%emt 0:00:00]} 2. d4 {[%emt 0:00:00]} e6 {[%emt 0:
00:04]} 3. c4 {[%emt 0:00:01]} a6 {[%emt 0:00:01]} 4. cxd5 {[%emt 0:00:04]}
exd5 {[%emt 0:00:01]} 5. Nc3 {[%emt 0:00:01]} Nf6 {[%emt 0:00:02]} 6. Bg5 {
[%emt 0:00:01]} Be6 {[%emt 0:00:04]} 7. e3 {[%emt 0:00:02]} Nbd7 {[%emt 0:00:
10]} 8. Bd3 {[%emt 0:00:01]} h6 {[%emt 0:00:01]} 9. Bh4 {[%emt 0:00:01]} g5 {
[%emt 0:00:29]} 10. Bg3 {[%emt 0:00:01]} Nh5 {[%emt 0:00:01]} 11. Qc2 {[%emt 0:
00:01]} Nxg3 {[%emt 0:00:18]} 12. hxg3 {[%emt 0:00:01]} c6 {[%emt 0:00:17]} 13.
O-O-O {[%emt 0:00:02]} Bg7 {[%emt 0:00:19]} 14. Kb1 {[%emt 0:00:01]} Qe7 {
[%emt 0:00:17]} 15. Rc1 {[%emt 0:00:04]} O-O-O {[%emt 0:00:15]} 16. Na4 {
[%emt 0:00:15]} Kb8 {[%emt 0:00:04]} 17. a3 {[%emt 0:00:14]} Rc8 {[%emt 0:00:
13]} 18. Nd2 {[%emt 0:00:10]} Ka7 {[%emt 0:00:04]} 19. Nb3 {[%emt 0:00:01]} Rc7
{[%emt 0:00:04]} 20. Nbc5 {[%emt 0:00:07]} Nxc5 {[%emt 0:00:04]} 21. Nxc5 {
[%emt 0:00:02]} Bc8 {[%emt 0:00:03]} 22. Qa4 {[%emt 0:00:15]} Qf6 {[%emt 0:00:
07]} 23. Rc2 {[%emt 0:00:07]} h5 {[%emt 0:00:05]} 24. Rhc1 {[%emt 0:00:10]} Qe7
{[%emt 0:00:14]} 25. Qb3 {[%emt 0:00:26]} h4 {[%emt 0:00:02]} 26. gxh4 {
[%emt 0:00:04]} Rxh4 {[%emt 0:00:02]} 27. g3 {[%emt 0:00:04]} Rh6 {[%emt 0:00:
03]} 28. Na4 {[%emt 0:00:05]} Rd7 {[%emt 0:00:09]} 29. Nb6 {[%emt 0:00:11]} Rd8
{[%emt 0:00:04]} 30. Rc5 {[%emt 0:00:07]} Qf6 {[%emt 0:00:06]} 31. Nxd5 {
[%emt 0:00:12]} cxd5 {[%emt 0:00:06]} 32. Rxc8 {[%emt 0:00:03]} Rxc8 {[%emt 0:
00:04]} 33. Rxc8 {[%emt 0:00:01]} Qxf2 {[%emt 0:00:06]} 34. Qc3 {[%emt 0:00:18]
} Qxe3 {[%emt 0:00:04]} 35. Bc2 {[%emt 0:00:37]} Qxd4 {[%emt 0:00:01]} 36.
Qxd4+ Bxd4 {[%emt 0:00:01]} 37. Rc7 {[%emt 0:00:03]} f5 {[%emt 0:00:04]} 38.
Rf7 {[%emt 0:00:03]} Rf6 {[%emt 0:00:02]} 39. Rxf6 {[%emt 0:00:01]} Bxf6 {
[%emt 0:00:01]} 40. Bxf5 {[%emt 0:00:01]} Be5 {[%emt 0:00:01]} 41. g4 {[%emt 0:
00:01]} a5 {[%emt 0:00:02]} 1/2-1/2

[Event "GER-ch Blitz 2019"]
[Site "Magdeburg"]
[Date "2019.05.25"]
[Round "8.14"]
[White "Krause, Benedict"]
[Black "Schulz, Karsten"]
[Result "1/2-1/2"]
[ECO "B09"]
[WhiteElo "2434"]
[BlackElo "2227"]
[Annotator "NA"]
[PlyCount "22"]
[EventDate "2019.05.25"]
[EventType "tourn"]
[EventCountry "GER"]
[Tiebreak "Number of wins+Number of black wins"]
[SourceTitle "playchess.com"]
[Source "ChessBase"]
[SourceQuality "1"]
[TimeControl "180+2"]

1. e4 {[%emt 0:00:01]} g6 {[%emt 0:00:00]} 2. d4 {[%emt 0:00:01]} Bg7 {[%emt 0:
00:00]} 3. Nc3 {[%emt 0:00:01]} d6 {[%emt 0:00:00]} 4. f4 {[%emt 0:00:02]} Nf6
{[%emt 0:00:02]} 5. Nf3 {[%emt 0:00:01]} O-O {[%emt 0:00:02]} 6. e5 {[%emt 0:
00:01]} dxe5 {[%emt 0:00:02]} 7. fxe5 {[%emt 0:00:02]} Nh5 {[%emt 0:00:03]} 8.
Be3 {[%emt 0:00:07]} Bg4 {[%emt 0:00:02]} 9. Be2 {[%emt 0:00:01]} c5 {[%emt 0:
00:05]} 10. dxc5 {[%emt 0:00:14]} Nc6 {[%emt 0:00:01]} 11. O-O {[%emt 0:00:09]}
Qb8 {[%emt 0:00:08]} 1/2-1/2

[Event "GER-ch Blitz 2019"]
[Site "Magdeburg"]
[Date "2019.05.25"]
[Round "8.15"]
[White "Carow, Johannes"]
[Black "Schneider, Ilja"]
[Result "1/2-1/2"]
[ECO "A05"]
[WhiteElo "2445"]
[BlackElo "2494"]
[Annotator "ChessBase"]
[PlyCount "22"]
[EventDate "2019.05.25"]
[EventType "tourn"]
[EventCountry "GER"]
[Tiebreak "Number of wins+Number of black wins"]
[SourceTitle "playchess.com"]
[Source "ChessBase"]
[SourceQuality "1"]
[TimeControl "180+2"]

1. Nf3 {[%emt 0:00:00]} Nf6 {[%emt 0:00:00]} 2. g3 {[%emt 0:00:02]} b5 {
[%emt 0:00:01]} 3. Bg2 {[%emt 0:00:11]} Bb7 {[%emt 0:00:01]} 4. Na3 {[%emt 0:
00:07]} a6 {[%emt 0:00:05]} 5. c4 {[%emt 0:00:03]} b4 {[%emt 0:00:02]} 6. Nc2 {
[%emt 0:00:01]} e6 {[%emt 0:00:00]} 7. O-O {[%emt 0:00:05]} Be7 {[%emt 0:00:03]
} 8. a3 {[%emt 0:00:07]} c5 {[%emt 0:00:19]} 9. axb4 {[%emt 0:00:06]} cxb4 {
[%emt 0:00:01]} 10. b3 {[%emt 0:00:02]} d5 {[%emt 0:00:04]} 11. d3 {[%emt 0:00:
15]} O-O {[%emt 0:00:06]} 1/2-1/2

[Event "GER-ch Blitz 2019"]
[Site "Magdeburg"]
[Date "2019.05.25"]
[Round "9.1"]
[White "Gustafsson, Jan"]
[Black "Ehmann, Thilo"]
[Result "1-0"]
[ECO "A31"]
[WhiteElo "2639"]
[BlackElo "2291"]
[Annotator "ChessBase"]
[PlyCount "83"]
[EventDate "2019.05.25"]
[EventType "tourn"]
[EventCountry "GER"]
[Tiebreak "Number of wins+Number of black wins"]
[SourceTitle "playchess.com"]
[Source "ChessBase"]
[SourceQuality "1"]
[TimeControl "180+2"]

1. Nf3 {[%emt 0:00:00]} c5 {[%emt 0:00:00]} 2. c4 {[%emt 0:00:01]} Nf6 {
[%emt 0:00:01]} 3. d4 {[%emt 0:00:01]} g6 {[%emt 0:00:08]} 4. Nc3 {[%emt 0:00:
02]} Bg7 {[%emt 0:00:03]} 5. e4 {[%emt 0:00:01]} cxd4 6. Nxd4 {[%emt 0:00:02]}
O-O {[%emt 0:00:13]} 7. Be2 {[%emt 0:00:01]} d6 {[%emt 0:00:01]} 8. O-O {
[%emt 0:00:03]} Nc6 {[%emt 0:00:07]} 9. Nc2 {[%emt 0:00:01]} Be6 {[%emt 0:00:
04]} 10. Bd2 {[%emt 0:00:02]} Rc8 {[%emt 0:00:06]} 11. Rc1 {[%emt 0:00:01]} Nd7
{[%emt 0:00:11]} 12. b3 {[%emt 0:00:01]} Nc5 {[%emt 0:00:07]} 13. f3 {[%emt 0:
00:04]} a6 14. Kh1 {[%emt 0:00:03]} Rb8 {[%emt 0:00:30]} 15. Nd5 {[%emt 0:00:
04]} Nd4 {[%emt 0:00:27]} 16. Nxd4 {[%emt 0:00:06]} Bxd4 {[%emt 0:00:02]} 17.
Ba5 {[%emt 0:00:16]} Qxa5 {[%emt 0:00:24]} 18. Nxe7+ {[%emt 0:00:02]} Kg7 {
[%emt 0:00:03]} 19. Qxd4+ {[%emt 0:00:02]} f6 {[%emt 0:00:01]} 20. Rc2 {
[%emt 0:00:22]} Rf7 {[%emt 0:00:14]} 21. Nd5 {[%emt 0:00:11]} Qd8 {[%emt 0:00:
00]} 22. Nf4 {[%emt 0:00:05]} Bc8 {[%emt 0:00:05]} 23. Rd1 {[%emt 0:00:02]} Rd7
{[%emt 0:00:03]} 24. Qxc5 {[%emt 0:00:21]} dxc5 {[%emt 0:00:09]} 25. Ne6+ {
[%emt 0:00:01]} Kg8 {[%emt 0:00:05]} 26. Nxd8 {[%emt 0:00:03]} Rxd1+ 27. Bxd1 {
[%emt 0:00:02]} Bd7 {[%emt 0:00:02]} 28. Nxb7 {[%emt 0:00:07]} Rxb7 {[%emt 0:
00:01]} 29. Rd2 {[%emt 0:00:02]} Kf7 {[%emt 0:00:05]} 30. Kg1 {[%emt 0:00:01]}
Ke7 31. Kf2 Bc6 {[%emt 0:00:02]} 32. Ke3 {[%emt 0:00:03]} a5 {[%emt 0:00:07]}
33. f4 {[%emt 0:00:05]} a4 {[%emt 0:00:06]} 34. h4 {[%emt 0:00:02]} Rb8 {
[%emt 0:00:12]} 35. g4 {[%emt 0:00:04]} axb3 {[%emt 0:00:10]} 36. axb3 {
[%emt 0:00:03]} Ra8 {[%emt 0:00:00]} 37. g5 {[%emt 0:00:03]} fxg5 {[%emt 0:00:
14]} 38. hxg5 Ra1 39. f5 {[%emt 0:00:10]} Rc1 {[%emt 0:00:05]} 40. f6+ Ke8 41.
e5 {[%emt 0:00:15]} Bd7 {[%emt 0:00:04]} 42. f7+ {[%emt 0:00:06]} 1-0